bitfinex-derivatives/quotes_BNBF0:USTF0_20250326
["timestamp","ask_amount","ask_price","bid_price","bid_amount"]
[1742955200129,0.29117653,631.61,630.55,1.18679413]
[1742955200328,0.31666112,631.59,630.55,1.18679413]
[1742955200530,0.29117653,631.58,630.55,1.18679413]
[1742955200731,0.31667115,631.57,630.55,1.18679413]
[1742955201124,0.29117653,631.56,630.55,1.18679413]
[1742955201327,0.31668118,631.55,630.55,1.18679413]
[1742955201628,0.29117653,631.54,630.55,1.18679413]
[1742955201829,0.31669121,631.53,630.55,1.18679413]
[1742955202028,0.29117653,631.52,630.55,1.18679413]
[1742955202228,0.31670123,631.51,630.56,1.18679413]
[1742955202429,0.29117653,631.5,630.56,1.18679413]
[1742955202627,0.31671127,631.49,630.56,1.18679413]
[1742955202826,0.29117653,631.48,630.56,1.18679413]
[1742955203027,0.3167213,631.47,630.56,1.18679413]
[1742955203224,0.29118071,631.46,630.56,1.18679413]
[1742955203428,0.31673133,631.45,630.56,1.18679413]
[1742955203628,0.29118071,631.44,630.56,1.18679413]
[1742955203929,0.31674136,631.43,630.56,1.18679413]
[1742955204131,0.29118071,631.42,630.58,1.18679413]
[1742955204325,0.31675139,631.41,630.58,1.18679413]
[1742955204530,0.29118071,631.4,630.58,1.18679413]
[1742955204732,0.31676143,631.39,630.58,1.18679413]
[1742955204926,0.29118071,631.38,630.58,1.18679413]
[1742955206027,0.31676143,631.39,630.58,1.18679413]
[1742955206226,0.27581397,631.37,630.58,1.18679413]
[1742955206627,0.31677648,631.36,630.58,1.18679413]
[1742955207034,0.31677648,631.36,630.31,1.1832752]
[1742955207035,0.31677648,631.36,630.52,1.18679413]
[1742955209236,0.27582927,631.35,630.38,1.18679413]
[1742955211139,0.27582927,631.35,630.37,1.18679413]
[1742955212042,0.31677648,631.36,630.37,1.18679413]
[1742955212339,0.27584676,631.34,630.37,1.18679413]
[1742955213241,0.27584676,631.34,630.36,1.18679413]
[1742955214839,0.657,631.33,630.36,1.18679413]
[1742955215341,0.27585114,631.32,630.36,1.18679413]
[1742955217946,0.657,631.33,630.36,1.18679413]
[1742955218444,0.27585332,631.31,630.26,0.31732935]
[1742955220851,0.437,631.3,630.26,0.31732935]
[1742955221251,0.71288503,631.3,630.26,0.31732935]
[1742955224066,0.437,631.3,630.26,0.31732935]
[1742955224262,0.27588831,631.29,630.26,0.31732935]
[1742955227066,0.437,631.3,630.26,0.31732935]
[1742955227465,0.27588613,631.28,630.26,0.31732935]
[1742955227968,0.27588613,631.28,630.28,1.18679413]
[1742955229368,0.27588613,631.28,630.29,0.27158327]
[1742955229562,0.27588613,631.28,630.33,1.18679413]
[1742955229964,0.437,631.3,630.33,1.18679413]
[1742955230162,0.29122152,631.29,630.33,1.18679413]
[1742955230363,0.27587082,631.27,630.33,1.18679413]
[1742955231467,0.27587082,631.27,630.38,1.18679413]
[1742955233066,0.27587082,631.27,630.31,1.18679413]
[1742955236173,0.31680658,631.3,630.31,1.18679413]
[1742955236476,0.712873,631.26,630.31,1.18679413]
[1742955236674,1.02969966,631.26,630.31,1.18679413]
[1742955237977,1.02969966,631.26,630.34,1.18679413]
[1742955238775,1.048,631.25,630.34,1.18679413]
[1742955239371,0.27588394,631.24,630.34,1.18679413]
[1742955239771,0.27588394,631.24,630.26,0.31732935]
[1742955239772,0.27588394,631.24,630.36,1.18679413]
[1742955240775,0.25999401,631.24,630.36,1.18679413]
[1742955241972,1.048,631.25,630.36,1.18679413]
[1742955242374,0.27588175,631.23,630.36,1.18679413]
[1742955242979,0.27588175,631.23,630.46,1.18679413]
[1742955244676,0.27588175,631.23,630.45,1.18679413]
[1742955244876,1.048,631.25,630.45,1.18679413]
[1742955245481,0.27587191,631.24,630.45,1.18679413]
[1742955248283,0.31684172,631.23,630.45,1.18679413]
[1742955248585,0.31684172,631.23,630.18,1.18679413]
[1742955251386,0.27593425,631.22,630.1,1.18679413]
[1742955252185,0.31685176,631.21,630.1,1.18679413]
[1742955254183,0.31685176,631.21,630.05,1.18679413]
[1742955255286,0.27596379,631.2,630.05,1.18679413]
[1742955255587,0.3168618,631.19,630.05,1.18679413]
[1742955255888,0.3168618,631.19,629.97,1.18679413]
[1742955257381,0.27597802,631.18,629.98,0.27091192]
[1742955257586,0.31687184,631.17,629.98,0.27091192]
[1742955258287,0.31687184,631.17,629.98,1.45770605]
[1742955258486,0.31687184,631.17,629.99,0.27091192]
[1742955259585,0.29134326,631.16,629.98,1.18679413]
[1742955259787,0.31688188,631.15,629.98,1.18679413]
[1742955260089,0.29134326,631.14,629.98,1.18679413]
[1742955260383,0.31689192,631.13,629.99,1.18679413]
[1742955260583,0.29134326,631.12,629.99,1.18679413]
[1742955260788,0.31690196,631.11,629.99,1.18679413]
[1742955260983,0.29134326,631.1,629.99,1.18679413]
[1742955261186,0.316912,631.09,629.99,1.18679413]
[1742955261385,0.29134326,631.08,629.99,1.18679413]
[1742955261587,0.31692205,631.07,629.99,1.18679413]
[1742955261782,0.29134326,631.06,629.99,1.18679413]
[1742955261987,0.31693209,631.05,629.99,1.18679413]
[1742955262187,0.29134326,631.04,629.99,1.18679413]
[1742955262387,0.31694214,631.03,629.99,1.18679413]
[1742955262988,0.31694214,631.03,629.74,1.185948]
[1742955262989,0.31694214,631.03,629.87,1.18679413]
[1742955263286,0.56738062,631.02,629.88,0.27096985]
[1742955263486,0.60832195,631.01,629.88,0.27096985]
[1742955263692,0.31695721,631.0,629.88,0.27096985]
[1742955264891,0.743,630.99,629.88,0.27096985]
[1742955265489,0.743,630.99,629.89,0.27096985]
[1742955265691,0.743,630.99,629.9,0.27096985]
[1742955265891,0.743,630.99,629.91,0.27096985]
[1742955266091,0.743,630.99,629.92,0.27096985]
[1742955266293,0.27600866,630.98,629.93,0.27094596]
[1742955266494,0.27600866,630.98,629.85,0.27094596]
[1742955266690,0.27600866,630.98,629.86,0.27094596]
[1742955266888,0.27600866,630.98,629.87,0.27094596]
[1742955267088,0.27600866,630.98,629.85,0.27094596]
[1742955267286,0.27600866,630.98,629.86,0.27094596]
[1742955267495,0.27600866,630.98,629.87,0.27094596]
[1742955267794,0.27600866,630.98,629.8,1.18679413]
[1742955267993,0.27600866,630.98,629.81,0.58849742]
[1742955268190,0.27600866,630.98,629.82,0.58849238]
[1742955268394,0.27600866,630.98,629.83,0.58848734]
[1742955268594,0.27600866,630.98,629.84,0.27094134]
[1742955268993,0.743,630.99,629.84,0.27094134]
[1742955269489,0.276001,630.97,629.84,0.27094134]
[1742955270996,0.276001,630.97,629.85,1.18679413]
[1742955271197,0.276001,630.97,629.86,0.27094134]
[1742955271594,0.276001,630.97,629.85,1.18679413]
[1742955271896,0.743,630.99,629.85,1.18679413]
[1742955272195,0.27600757,630.96,629.85,1.18679413]
[1742955272396,0.27600757,630.96,629.86,0.27094441]
[1742955273596,0.27600757,630.96,629.86,1.45773854]
[1742955273797,0.27600757,630.96,629.87,0.27094441]
[1742955274893,0.743,630.99,629.87,0.27094441]
[1742955275398,0.27600647,630.95,629.87,0.27094441]
[1742955276198,0.27600647,630.95,629.88,1.45773554]
[1742955276498,0.27600647,630.95,629.89,0.27094141]
[1742955277807,0.27600647,630.95,630.01,1.18679413]
[1742955278001,0.743,630.99,630.02,0.27094141]
[1742955278393,0.743,630.99,630.01,1.18679413]
[1742955279398,0.27599005,630.98,630.01,1.18679413]
[1742955280400,0.27599005,630.98,629.84,0.27599005]
[1742955280401,0.27599005,630.98,629.92,1.18679413]
[1742955280602,0.27599005,630.98,629.93,0.27094699]
[1742955280900,0.27599005,630.98,629.94,0.27094849]
[1742955281101,0.27599005,630.98,629.92,1.18679413]
[1742955282697,0.27599005,630.98,629.88,1.18679413]
[1742955284001,0.743,630.99,629.88,1.18679413]
[1742955284201,0.27600428,630.97,629.88,1.18679413]
[1742955285205,0.27600428,630.97,629.84,0.27600428]
[1742955285206,0.27600428,630.97,629.94,1.18679413]
[1742955287106,0.31695721,631.0,629.94,1.18679413]
[1742955287303,0.27599662,630.96,629.94,1.18679413]
[1742955288913,1.001,630.95,629.94,1.18679413]
[1742955289612,1.001,630.95,629.84,0.27599662]
[1742955289613,1.001,630.95,629.95,1.18679413]
[1742955290407,0.27600976,630.94,629.95,1.18679413]
[1742955290806,0.27600976,630.94,629.95,1.17821488]
[1742955292112,0.27600976,630.94,629.83,0.317546]
[1742955292413,0.27600976,630.94,629.84,0.27136232]
[1742955293010,1.001,630.95,629.84,0.27136232]
[1742955293412,0.27602289,630.94,629.84,0.27136232]
[1742955294112,0.27602289,630.94,629.83,0.317546]
[1742955296014,0.437,630.94,629.83,0.317546]
[1742955297313,0.27603931,630.93,629.83,0.317546]
[1742955299017,0.437,630.94,629.83,0.317546]
[1742955299417,0.27604041,630.92,629.83,0.317546]
[1742955301916,0.437,630.94,629.83,0.317546]
[1742955302215,0.27603603,630.91,629.83,0.317546]
[1742955305021,0.437,630.94,629.83,0.317546]
[1742955305216,0.27603493,630.9,629.83,0.317546]
[1742955308030,0.437,630.94,629.83,0.317546]
[1742955308231,0.27603384,630.89,629.83,0.317546]
[1742955309731,0.903,630.88,629.83,0.317546]
[1742955310329,0.903,630.88,629.84,0.27137313]
[1742955313335,0.903,630.88,629.83,0.317546]
[1742955313638,0.903,630.88,629.84,0.27138952]
[1742955314337,0.27605683,630.87,629.84,0.27138952]
[1742955314838,0.27605683,630.87,629.83,0.317546]
[1742955315032,0.27605683,630.87,629.84,0.27141336]
[1742955315837,0.27605683,630.87,629.83,0.317546]
[1742955316944,0.903,630.88,629.83,0.317546]
[1742955317139,0.31702252,630.87,629.83,0.317546]
[1742955317545,0.59310344,630.87,629.83,0.317546]
[1742955319145,0.59310344,630.87,629.73,1.185948]
[1742955319342,0.59310344,630.87,629.74,0.27145627]
[1742955319548,0.59310344,630.87,629.73,1.185948]
[1742955319843,0.29145317,630.86,629.74,0.2714622]
[1742955320044,0.31703257,630.85,629.74,0.2714622]
[1742955320443,0.59313649,630.85,629.74,0.2714622]
[1742955320945,0.59313649,630.85,629.6,0.2714622]
[1742955321346,0.29145673,630.84,629.6,0.2714622]
[1742955321639,0.31704262,630.83,629.6,0.2714622]
[1742955322044,0.29145601,630.82,629.6,0.2714622]
[1742955322246,0.31705267,630.81,629.6,0.2714622]
[1742955323246,0.27612145,630.8,629.6,0.2714622]
[1742955323541,0.31706273,630.79,629.6,0.2714622]
[1742955323745,0.31706273,630.79,629.56,1.185948]
[1742955323746,0.31706273,630.79,629.61,0.2714622]
[1742955323945,0.31706273,630.79,629.57,0.2714622]
[1742955324240,0.31706273,630.79,629.58,0.2714622]
[1742955324444,0.31706273,630.79,629.59,0.2714622]
[1742955324641,0.31706273,630.79,629.6,0.2714622]
[1742955324945,0.31706273,630.79,629.61,0.2714622]
[1742955325145,0.31706273,630.79,629.57,0.2714622]
[1742955325347,0.31706273,630.79,629.58,0.2714622]
[1742955325546,0.31706273,630.79,629.57,0.2714622]
[1742955325846,0.31706273,630.79,629.58,0.2714622]
[1742955326147,0.31706273,630.79,629.59,0.2714622]
[1742955326347,0.27613021,630.78,629.54,0.27613021]
[1742955326548,0.31707278,630.77,629.55,0.2714622]
[1742955327342,0.436,630.76,629.55,0.2714622]
[1742955327548,0.31708283,630.75,629.55,0.2714622]
[1742955329147,0.31708283,630.75,629.56,0.2714622]
[1742955329343,0.31708283,630.75,629.57,0.2714622]
[1742955329546,0.31708283,630.75,629.51,0.2714622]
[1742955329746,0.31708283,630.75,629.52,0.2714622]
[1742955329942,0.31708283,630.75,629.53,0.2714622]
[1742955330148,0.31708283,630.75,629.51,0.2714622]
[1742955330343,0.27614117,630.74,629.53,0.27614117]
[1742955330549,0.27614117,630.74,629.54,0.27146321]
[1742955332049,0.31708283,630.75,629.54,0.27146321]
[1742955332248,0.31708283,630.75,629.5,1.185948]
[1742955332543,0.27614226,630.73,629.53,0.27614226]
[1742955332749,0.27614226,630.73,629.54,0.27146355]
[1742955333448,0.27614226,630.73,629.57,1.185948]
[1742955333645,0.27614226,630.73,629.58,0.27146355]
[1742955335251,0.27614226,630.73,629.61,1.185948]
[1742955335444,0.27614226,630.73,629.62,0.27146355]
[1742955337654,0.27614226,630.73,629.63,1.50359487]
[1742955337953,0.27614226,630.73,629.64,0.58910537]
[1742955338154,0.27614226,630.73,629.65,0.27146355]
[1742955338354,0.27614226,630.73,629.65,0.58910033]
[1742955338653,0.27614226,630.73,629.66,0.27146355]
[1742955338853,0.27614226,630.73,629.65,0.31763678]
[1742955339055,0.27614226,630.73,629.66,0.27140087]
[1742955340861,0.31708283,630.75,629.66,0.27140087]
[1742955341762,0.2760853,630.74,629.66,0.27140087]
[1742955343661,0.2760853,630.74,629.67,0.58902711]
[1742955343858,0.2760853,630.74,629.68,0.58902206]
[1742955344061,0.31708283,630.75,629.69,0.58901702]
[1742955344263,0.27607544,630.73,629.7,0.27140042]
[1742955345158,0.27607544,630.73,629.71,0.27140114]
[1742955345357,0.27607544,630.73,629.71,0.31760651]
[1742955345561,0.27607544,630.73,629.72,0.27140114]
[1742955346665,0.747,630.72,629.72,0.27140114]
[1742955347466,1.02306997,630.72,629.72,0.27140114]
[1742955349870,1.02306997,630.72,629.71,0.31760651]
[1742955349871,1.02306997,630.72,629.73,0.5889809]
[1742955350171,0.747,630.72,629.74,0.27138447]
[1742955355975,0.747,630.72,629.73,0.31759643]
[1742955356174,0.747,630.72,629.74,0.27137818]
[1742955360676,0.2760634,630.74,629.75,0.27137523]
[1742955360875,0.2760634,630.74,629.74,0.27137523]
[1742955361076,0.2760634,630.74,629.75,0.27137523]
[1742955361278,0.436,630.73,629.76,0.27137523]
[1742955361479,0.436,630.73,629.77,0.27137523]
[1742955361679,0.436,630.73,629.74,0.27137523]
[1742955361872,0.436,630.73,629.75,0.27137523]
[1742955362073,0.436,630.73,629.74,0.27137523]
[1742955362279,0.27607654,630.72,629.75,0.27137523]
[1742955362473,0.27607654,630.72,629.76,0.27137523]
[1742955362677,0.27607654,630.72,629.74,0.27137523]
[1742955362877,0.27607654,630.72,629.75,0.27137523]
[1742955363074,0.27607654,630.72,629.74,0.27137523]
[1742955363274,0.27607654,630.72,629.75,0.27141918]
[1742955363477,0.27607654,630.72,629.76,0.27141918]
[1742955363777,0.785,630.71,629.77,0.27141918]
[1742955363973,0.785,630.71,629.73,0.31759643]
[1742955364178,0.785,630.71,629.74,0.27141988]
[1742955365575,0.27611049,630.7,629.73,0.31759643]
[1742955371175,0.785,630.71,629.73,0.31759643]
[1742955372477,0.27614883,630.7,629.73,0.31759643]
[1742955373376,0.27614883,630.7,629.74,0.27147647]
[1742955374086,0.785,630.71,629.74,0.27147647]
[1742955374478,0.27612802,630.69,629.74,0.27147647]
[1742955375891,0.27612802,630.69,629.75,0.27147705]
[1742955376187,0.27612802,630.69,629.76,0.27147705]
[1742955376388,0.27612802,630.69,629.74,0.27147705]
[1742955376587,0.27612802,630.69,629.73,0.31759643]
[1742955376786,0.27612802,630.69,629.74,0.27147656]
[1742955377187,0.785,630.71,629.74,0.27147656]
[1742955377587,0.27612802,630.68,629.74,0.27147656]
[1742955379189,0.27612802,630.68,629.75,0.27147996]
[1742955379489,0.27612802,630.68,629.76,0.27147996]
[1742955379682,0.785,630.71,629.73,0.31759643]
[1742955379887,0.785,630.71,629.74,0.27148091]
[1742955380490,0.785,630.71,629.73,0.31759643]
[1742955380684,0.785,630.71,629.74,0.27148641]
[1742955382191,0.785,630.71,629.73,0.31759643]
[1742955382488,0.785,630.71,629.74,0.27148718]
[1742955382692,0.785,630.71,629.73,0.31759643]
[1742955382883,0.785,630.71,629.74,0.27148722]
[1742955383089,0.785,630.71,629.73,0.31759643]
[1742955384291,0.27615979,630.7,629.73,0.31759643]
[1742955385193,0.317113,630.69,629.51,0.27615979]
[1742955385394,0.317113,630.69,629.52,0.27149266]
[1742955386397,0.317113,630.69,629.53,0.27149266]
[1742955386697,0.317113,630.69,629.54,0.27149266]
[1742955386897,0.317113,630.69,629.32,0.589296]
[1742955387197,0.317113,630.69,629.33,0.27149266]
[1742955387397,0.27618609,630.68,629.33,0.54767875]
[1742955387698,0.31712305,630.67,629.34,0.5892859]
[1742955387997,0.31712305,630.67,629.35,0.58928085]
[1742955388194,0.31712305,630.67,629.36,0.5892758]
[1742955388394,0.31712305,630.67,629.37,0.58927075]
[1742955388597,0.31712305,630.67,629.38,0.5892657]
[1742955388792,0.31712305,630.67,629.39,0.27149266]
[1742955390392,0.27606449,630.66,629.39,0.27149266]
[1742955390597,0.59319257,630.66,629.39,0.27149266]
[1742955392191,0.31712808,630.66,629.39,0.27149266]
[1742955392397,0.869,630.65,629.39,0.27149266]
[1742955392597,1.145185,630.65,629.39,0.27149266]
[1742955392999,0.436,630.64,629.39,0.27149266]
[1742955394295,0.436,630.64,629.4,0.27148853]
[1742955394499,0.436,630.64,629.49,1.185948]
[1742955394701,0.436,630.64,629.5,0.27148853]
[1742955395396,0.27617404,630.63,629.5,0.27148853]
[1742955396296,0.27617404,630.63,629.55,1.185948]
[1742955396497,0.27617404,630.63,629.56,0.27148853]
[1742955397302,0.27617404,630.63,629.57,0.27149999]
[1742955397504,0.27617404,630.63,629.56,0.27149999]
[1742955397703,0.27617404,630.63,629.57,0.27149999]
[1742955397895,0.27617404,630.63,629.55,1.185948]
[1742955397896,0.27617404,630.63,629.56,0.27149999]
[1742955398100,0.436,630.64,629.57,0.27149999]
[1742955398299,0.436,630.64,629.56,0.27149999]
[1742955398502,0.27616856,630.62,629.57,0.27149999]
[1742955398698,0.27616856,630.62,629.55,1.185948]
[1742955398901,0.27616856,630.62,629.56,0.27149877]
[1742955399403,0.27616856,630.62,629.57,0.27149877]
[1742955399603,0.27616856,630.62,629.52,0.27149877]
[1742955399804,0.27616856,630.62,629.53,0.27149877]
[1742955400000,0.27616856,630.62,629.54,0.27149877]
[1742955400202,0.27616856,630.62,629.51,1.185948]
[1742955400402,0.27616856,630.62,629.52,0.2715007]
[1742955401097,0.436,630.64,629.52,0.2715007]
[1742955401300,0.436,630.64,629.56,1.185948]
[1742955401499,0.436,630.64,629.57,0.2715007]
[1742955402406,0.27616637,630.63,629.57,0.2715007]
[1742955403411,0.27616637,630.63,629.6,1.185948]
[1742955403609,0.27616637,630.63,629.61,0.27149755]
[1742955404206,0.436,630.64,629.61,0.27149755]
[1742955405406,0.27616198,630.63,629.61,0.27149755]
[1742955406308,0.27616198,630.63,629.61,1.45744555]
[1742955406508,0.27616198,630.63,629.62,0.27149755]
[1742955407105,0.869,630.65,629.62,0.27149755]
[1742955408315,0.59329903,630.64,629.62,0.27149755]
[1742955408515,0.31714317,630.63,629.61,1.185948]
[1742955409218,0.31714317,630.63,629.68,1.185948]
[1742955410117,0.436,630.62,629.68,1.185948]
[1742955411011,0.31715323,630.61,629.68,1.185948]
[1742955411311,0.59333932,630.61,629.68,1.185948]
[1742955411817,0.59333932,630.61,629.54,1.1877702]
[1742955411818,0.605,630.6,629.54,1.1877702]
[1742955412018,0.31716329,630.59,629.54,1.1877702]
[1742955413917,0.31716329,630.59,629.5,1.1877702]
[1742955416323,0.31716329,630.59,629.48,1.1877702]
[1742955416523,0.27621569,630.58,629.48,1.1877702]
[1742955416724,0.31717335,630.57,629.48,1.1877702]
[1742955418729,0.31717335,630.57,629.49,0.27156843]
[1742955419924,0.31717335,630.57,629.52,1.1877702]
[1742955420329,0.27621349,630.56,629.52,1.1877702]
[1742955420743,0.31718341,630.55,629.52,1.1877702]
[1742955421842,0.31718341,630.55,629.49,1.1877702]
[1742955422144,0.31718341,630.55,629.5,0.27156806]
[1742955422538,0.27622117,630.54,629.49,1.1877702]
[1742955422743,0.31719347,630.53,629.49,1.1877702]
[1742955423744,0.31719347,630.53,629.44,1.1877702]
[1742955423937,0.31719347,630.53,629.45,0.2715675]
[1742955424745,0.436,630.52,629.45,0.2715675]
[1742955424941,0.31720353,630.51,629.45,0.2715675]
[1742955425340,0.276242,630.5,629.45,0.2715675]
[1742955425545,0.31721359,630.49,629.45,1.4593377]
[1742955425746,0.31721359,630.49,629.45,1.1877702]
[1742955425945,0.31721359,630.49,629.46,0.27157599]
[1742955426346,0.31721359,630.49,629.45,1.1877702]
[1742955428246,0.31721359,630.49,629.4,1.1877702]
[1742955429444,0.27626831,630.48,629.4,1.1877702]
[1742955429845,0.31722365,630.47,629.4,1.1877702]
[1742955430850,0.31722365,630.47,629.13,0.27626831]
[1742955431049,0.31722365,630.47,629.0,1.1877702]
[1742955431349,0.27631877,630.46,629.12,0.27631877]
[1742955431544,0.31723372,630.45,629.12,0.27631877]
[1742955431745,0.31723372,630.45,629.01,0.31795996]
[1742955431942,0.31723372,630.45,629.02,0.27163029]
[1742955432149,0.31723372,630.45,629.03,0.31794985]
[1742955432347,0.31723372,630.45,629.04,0.27163029]
[1742955432644,0.31723372,630.45,629.05,0.58958134]
[1742955432847,0.31723372,630.45,629.06,0.27164159]
[1742955433448,0.31723372,630.45,629.07,0.27163958]
[1742955433645,0.31723372,630.45,629.08,0.27163958]
[1742955433848,0.31723372,630.45,629.09,0.27163958]
[1742955434041,0.31723372,630.45,629.06,0.27163958]
[1742955434245,0.31723372,630.45,629.07,0.27163958]
[1742955434446,0.31723372,630.45,629.06,0.27163958]
[1742955434447,0.27631548,630.44,629.06,0.27163958]
[1742955434643,0.31724378,630.43,629.07,0.27163958]
[1742955434843,0.31724378,630.43,629.08,0.27163958]
[1742955435048,0.31724378,630.43,629.06,0.27163958]
[1742955435248,0.31724378,630.43,629.07,0.27163958]
[1742955435450,0.31724378,630.43,629.06,0.54795725]
[1742955435647,0.31724378,630.43,629.07,0.27163958]
[1742955436250,0.31724378,630.43,629.24,1.1877702]
[1742955436448,0.31724378,630.43,629.25,0.27163958]
[1742955437351,0.881,630.42,629.25,0.27163958]
[1742955437548,0.31725385,630.41,629.25,0.27163958]
[1742955438449,0.27629902,630.4,629.25,0.27163958]
[1742955438652,0.31726391,630.39,629.25,0.27163958]
[1742955440246,0.435,630.38,629.25,0.27163958]
[1742955440552,0.31727398,630.37,629.25,0.27163958]
[1742955440754,0.31727398,630.37,629.27,1.1877702]
[1742955440953,0.31727398,630.37,629.28,0.27163958]
[1742955441152,0.31727398,630.37,629.29,0.27164354]
[1742955441355,0.27630012,630.36,629.28,0.27164354]
[1742955441554,0.31728404,630.35,629.28,0.27164354]
[1742955442555,0.31728404,630.35,629.27,1.1877702]
[1742955442753,0.31728404,630.35,629.28,0.2715938]
[1742955443351,0.2762716,630.34,629.28,0.2715938]
[1742955444257,0.2762716,630.34,629.36,1.1877702]
[1742955444459,0.2762716,630.34,629.37,0.2715938]
[1742955445961,0.2762716,630.34,629.42,1.1877702]
[1742955446162,0.2762716,630.34,629.43,0.2715938]
[1742955447059,0.2762716,630.34,629.42,1.1877702]
[1742955447263,0.2762716,630.34,629.43,0.27157028]
[1742955448662,0.2762716,630.34,629.44,1.1877702]
[1742955448967,0.2762716,630.34,629.45,0.27157028]
[1742955449168,0.31728404,630.35,629.45,0.27157028]
[1742955449363,0.27623432,630.33,629.45,0.27157028]
[1742955451168,0.27623432,630.33,629.58,1.1877702]
[1742955452168,0.31728404,630.35,629.58,1.1877702]
[1742955452571,0.27623213,630.32,629.58,1.1877702]
[1742955452766,0.27623213,630.32,629.59,0.2715775]
[1742955452970,0.27623213,630.32,629.56,1.1877702]
[1742955455171,0.31728404,630.35,629.55,1.1877702]
[1742955455466,0.27623432,630.31,629.55,1.1877702]
[1742955457174,0.27623432,630.31,629.54,1.1877702]
[1742955457469,0.27623432,630.31,629.55,0.27155913]
[1742955458173,0.31728404,630.35,629.55,0.27155913]
[1742955459373,0.31728404,630.35,629.63,1.1877702]
[1742955459574,0.31728404,630.35,629.64,0.27155913]
[1742955459774,0.564,630.34,629.64,0.27155913]
[1742955460869,0.435,630.33,629.64,0.27155913]
[1742955461072,0.435,630.33,629.65,0.27154004]
[1742955461275,0.435,630.33,629.63,1.1877702]
[1742955461477,0.435,630.33,629.64,0.27154003]
[1742955461675,0.435,630.33,629.65,0.27154003]
[1742955461876,0.435,630.33,629.62,1.1877702]
[1742955462078,0.435,630.33,629.63,0.27154581]
[1742955462480,0.435,630.33,629.62,1.1877702]
[1742955462676,0.435,630.33,629.63,0.27154645]
[1742955464082,0.435,630.33,629.62,1.1877702]
[1742955464288,0.435,630.33,629.63,0.27155171]
[1742955464489,0.435,630.33,629.64,0.27155171]
[1742955464782,0.435,630.33,629.61,1.1877702]
[1742955464986,0.435,630.33,629.62,0.2715509]
[1742955465586,0.435,630.33,629.61,1.1877702]
[1742955465787,0.435,630.33,629.62,0.27155171]
[1742955467288,0.435,630.33,629.59,1.1877702]
[1742955467489,0.435,630.33,629.6,0.27155144]
[1742955468684,0.435,630.33,629.61,0.27154941]
[1742955468892,0.435,630.33,629.62,0.27154941]
[1742955469092,0.435,630.33,629.6,0.27154941]
[1742955469292,0.435,630.33,629.59,1.1877702]
[1742955469293,0.435,630.33,629.61,0.27154941]
[1742955469491,0.435,630.33,629.59,0.27154941]
[1742955469685,0.435,630.33,629.6,0.27154941]
[1742955469889,0.435,630.33,629.59,0.27154941]
[1742955470189,0.435,630.33,629.6,0.27154941]
[1742955470491,0.27622007,630.32,629.61,0.27154941]
[1742955470687,0.27622007,630.32,629.62,0.27154941]
[1742955470892,0.27622007,630.32,629.59,0.27154941]
[1742955471192,0.27622007,630.32,629.58,1.1877702]
[1742955471193,0.27622007,630.32,629.6,0.27154941]
[1742955471387,0.27622007,630.32,629.62,1.1877702]
[1742955471593,0.27622007,630.32,629.63,0.27154941]
[1742955473193,0.435,630.33,629.63,0.27154941]
[1742955474194,0.435,630.33,629.66,1.1877702]
[1742955474395,0.27621569,630.32,629.67,0.27154941]
[1742955474895,0.27621569,630.32,629.68,0.27155115]
[1742955475194,0.27621569,630.32,629.66,1.1877702]
[1742955476090,0.435,630.33,629.66,1.1877702]
[1742955477197,0.435,630.33,629.68,1.1877702]
[1742955477396,0.2762113,630.32,629.68,1.1877702]
[1742955479095,0.564,630.34,629.68,1.1877702]
[1742955479996,0.564,630.34,629.72,1.1877702]
[1742955480395,0.27620911,630.33,629.72,1.1877702]
[1742955481293,0.71120911,630.33,629.72,1.1877702]
[1742955481492,0.71120911,630.33,629.48,1.1877702]
[1742955482093,0.435,630.33,629.48,1.1877702]
[1742955483495,0.2762409,630.32,629.48,1.1877702]
[1742955483897,0.2762409,630.32,629.46,1.1877702]
[1742955484396,0.9562409,630.32,629.46,1.1877702]
[1742955485093,0.68,630.32,629.46,1.1877702]
[1742955485489,0.27624638,630.31,629.47,1.1877702]
[1742955487700,0.27624638,630.31,629.48,1.1877702]
[1742955488100,0.68,630.32,629.48,1.1877702]
[1742955488496,0.68,630.32,629.49,0.27156657]
[1742955489501,0.27624419,630.31,629.49,0.27156657]
[1742955489701,0.27624419,630.31,629.66,1.1877702]
[1742955491202,0.68,630.32,629.64,1.1877702]
[1742955491501,0.27622446,630.3,629.64,1.1877702]
[1742955494304,0.68,630.32,629.62,1.1877702]
[1742955494507,0.27621569,630.29,629.62,1.1877702]
[1742955496200,0.27621569,630.29,629.65,1.1877702]
[1742955497106,0.68,630.32,629.65,1.1877702]
[1742955497507,0.27621459,630.29,629.65,1.1877702]
[1742955498706,0.27621459,630.29,629.64,1.1877702]
[1742955500211,0.435,630.33,629.64,1.1877702]